Cogmind - Beta 15 *** ADVENTURER MODE // 2025.05.29 @ 17:20:22 Player: Cancer Result: Destroyed by 7U-8TX(j) with Overtuned Pulse Rifle Performance ------------- Evolutions (0) 0 Regions Visited (3) 600 Robots Destroyed (20) 100 Value Destroyed (517) 517 Prototype IDs (16) 320 Alien Tech Used (0) 0 Bonus (800) 800 TOTAL SCORE: 2337 Bonus ------- Registered with UFD 300 Met Optimus in HQ 500 Cogmind --------- Core Integrity 0/250 Matter 251/300 Energy 286/290 System Corruption 0% Temperature Cool (12) Movement Walking (180) Ox1 Location -9/Scraptown Parts ------- > --- POWER (1) -------- Improved Deuterium Engine > --- PROPULSION (2) --- Overtuned Titanium Leg VSS Leg > --- UTILITY (2) ------ Signal Interpreter A0-MCA's Component Scanner > --- WEAPON (2) ------- Overtuned Pulse Rifle Barrage Gun > --- INVENTORY (5) ---- Scrap Suit Weight Redist. System Overtuned Quantum Rifle Overtuned Barrage Gun Peak State ------------ > --- POWER ------------ Improved Deuterium Engine > --- PROPULSION ------- Overtuned Titanium Leg Overtuned Titanium Leg > --- UTILITY ---------- Signal Interpreter A0-MCA's Component Scanner > --- WEAPON ----------- Overtuned Quantum Rifle Barrage Gun > --- INVENTORY -------- Small Storage Unit Weight Redist. System Small Laser Overtuned Barrage Gun Grenade Launcher [Rating: 31] Favorites ----------- Power Light Ion Engine Engine Light Ion Engine Propulsion Aluminum Leg Leg Aluminum Leg Wheel Subdweller Monowheel Utility Signal Interpreter Storage Small Storage Unit Processor Signal Interpreter Weapon Assault Rifle Energy Gun Small Laser Ballistic Gun Assault Rifle Launcher Grenade Launcher Build | -11 -10 -10 -9 ------- Run | Yrd Mat Sub Scr Slots Evolved . | . . . . Power . | . . . . Propulsion . | . . . . Utility . | . . . . Weapon . | . . . . Parts Attached 20 | 6 3 1 10 Power 2 | 1 . . 1 Engine 2 | 1 . . 1 Core . | . . . . Reactor . | . . . . Propulsion 7 | 2 1 . 4 Treads . | . . . . Leg 6 | 2 1 . 3 Wheel 1 | . . . 1 Hover . | . . . . Flight . | . . . . Utility 3 | 1 1 . 1 Device . | . . . . Storage 1 | 1 . . . Processor 2 | . 1 . 1 Hackware . | . . . . Protection . | . . . . Artifact . | . . . . Weapon 8 | 2 1 1 4 Energy Gun 4 | 1 . 1 2 Energy Cannon . | . . . . Ballistic Gun 3 | 1 . . 2 Ballistic Cannon . | . . . . Launcher 1 | . 1 . . Special Weapon . | . . . . Impact Weapon . | . . . . Slashing Weapon . | . . . . Piercing Weapon . | . . . . Special Melee Weapon . | . . . . Unidentified Prototypes . | . . . . Parts Lost 4 | . 1 2 1 Power . | . . . . Propulsion 2 | . 1 1 . Utility . | . . . . Weapon 2 | . . 1 1 Highest Loss Streak 1 | . 1 1 1 To Critical Strikes . | . . . . Average Backups 2 | . 1 3 2 Power . | . . . . Propulsion . | . . . . Utility 1 | . . 1 1 Weapon 1 | . . 1 1 Tool/Special . | . . . . Unused Backups 2 | . . . 2 Power . | . . . . Propulsion . | . . . . Utility 2 | . . . 2 Weapon . | . . . . Tool/Special . | . . . . Average Slot Usage (%) 98 | . 89 98 99 Engine 14 | . 14 14 14 Leg 18 | . 28 27 15 Wheel 9 | . . . 12 Storage 7 | . 14 14 5 Processor 19 | . 4 14 22 Energy Gun 13 | . 14 13 13 Ballistic Gun 12 | . 13 6 14 Launcher 1 | . . 7 . Peak Build Rating 31 | 6 7 8 31 Average Rating 11 | 3 6 7 13 On Entrance 4 | . 6 7 6 Naked Turns . | . . . . Heaviest Build 19 | 11 12 15 19 Greatest Support 38 | 20 20 20 38 Greatest Overweight (x) 1 | 1 . 1 1 Average Overweight (x) . | . . . . Largest Inventory Capacity 8 | 8 8 8 8 Average Capacity 6 | 7 8 8 6 Most Carried 5 | 5 3 4 5 Average Carried 2 | . 1 3 2 Final Capacity 8 | 8 8 8 5 Final Carried 5 | . 2 3 5 Class Distribution -------------------- 100% | Mutant Dominant Class ---------------- Mutant | -10/Materials Mutant | -10/Subcaves Mutant | -9/Scraptown Resources | -11 -10 -10 -9 ----------- Run | Yrd Mat Sub Scr Matter Collected 868 | 65 131 340 332 Remotely . | . . . . Salvage Created 614 | . 174 181 259 Parts 31 | . 9 8 14 Haulers Intercepted 1 | . 1 . . Recyclers Shooed . | . . . . Parts Field Recycled . | . . . . Retrieved Matter . | . . . . Parts Self-Destructed 5 | . . 5 . Prevented . | . . . . Kills | -11 -10 -10 -9 ------- Run | Yrd Mat Sub Scr Combat Hostiles Destroyed 14 | . 3 6 5 Guns 9 | . 3 2 4 AOE 5 | . . 4 1 Classes Destroyed 9 | . 4 2 3 Worker 1 | . 1 . . Hauler 1 | . 1 . . Turret 2 | . . 2 . Watcher 2 | . 2 . . Swarmer 5 | . 3 2 . Subdweller 4 | . . 4 . Federalist 2 | . . . 2 Explorer 1 | . . . 1 Scrapper 2 | . . . 2 Best Kill Streak 4 | . 4 4 3 Combat Bots Only 3 | . 3 2 3 Max Kills in Single Turn 2 | . 2 2 1 Gunslinging . | . . . . Exploded 2 | . . 2 1 Melee . | . . . . Uniques/NPCs Destroyed . | . . . . Combat | -11 -10 -10 -9 -------- Run | Yrd Mat Sub Scr Hostile Shots Fired 149 | . 14 59 76 Missed 58 | . 3 26 29 Hits 91 | . 11 33 47 Melee 2 | . . . 2 Projectile 89 | . 11 33 45 AOE 1 | . 1 . . Critical Strikes 2 | . . 1 1 Damage Taken 1227 | . 175 450 602 Core 253 | . 14 119 120 Absorbed by Shields . | . . . . Ignored by Resistances 335 | . 50 118 167 Core Remaining (%) 100 | 100 . . . Volleys Fired 89 | . 20 32 37 Largest 2 | . 2 2 2 Hottest 140 | . 70 90 140 Shots Fired 126 | . 35 47 44 Gun 101 | . 34 32 35 Cannon . | . . . . Launcher 25 | . 1 15 9 Special . | . . . . Kinetic 68 | . 19 15 34 Thermal 33 | . 15 17 1 Explosive 25 | . 1 15 9 Electromagnetic . | . . . . Robot Hit Streak 21 | . 7 13 21 Robot Miss Streak 4 | . 2 3 4 Penetration Max . | . . . . Secondary Targets . | . . . . Shots Hit Robots 73 | . 20 28 25 Core Hits 39 | . 9 19 11 Critical Kills . | . . . . Critical Parts Destroyed . | . . . . Critical Strikes . | . . . . Melee Attacks . | . . . . Impact . | . . . . Slashing . | . . . . Piercing . | . . . . Sneak Attacks . | . . . . Combat Hostiles . | . . . . Follow-up Attacks . | . . . . Damage Inflicted 1416 | . 250 735 431 Guns 963 | . 250 328 385 Cannons . | . . . . Explosions 453 | . . 407 46 Melee . | . . . . Ramming . | . . . . Kinetic 682 | . 161 136 385 Thermal 281 | . 89 192 . Explosive 453 | . . 407 46 Electromagnetic . | . . . . Impact . | . . . . Slashing . | . . . . Piercing . | . . . . Highest Corruption . | . . . . Average Corruption . | . . . . Corruption Purged . | . . . . Corruption Blocked . | . . . . Overload Shots . | . . . . Overflow Damage . | . . . . Projectiles . | . . . . Explosions . | . . . . Melee . | . . . . Knockbacks . | . . . . Impact . | . . . . Kinetic . | . . . . Secondary . | . . . . Self-Inflicted Damage 75 | . . 38 37 Shots 6 | . . 3 3 Rammed . | . . . . Targets Rammed . | . . . . Kicked . | . . . . Crushed . | . . . . Highest Temperature 199 | . 9 199 117 Average Temperature 41 | . 5 146 29 Received Heat Transfer 801 | . 12 344 445 Siege Activations . | . . . . Martial Activations . | . . . . Shielding Activations . | . . . . Robots Disrupted . | . . . . Combat Hostiles . | . . . . Robots Corrupted . | . . . . Combat Hostiles . | . . . . Parts Fried . | . . . . Impact Corruptions . | . . . . Robots Melted . | . . . . Combat Hostiles . | . . . . Parts Melted 3 | . . 1 2 Heat Transferred 550 | . 200 350 . Parts Sabotaged . | . . . . Parts Stolen . | . . . . Parts Stripped . | . . . . Power Chain Reactions . | . . . . Alert | -11 -10 -10 -9 ------- Run | Yrd Mat Sub Scr Maximum Alert Level . | . . . . Low Security (%) 100 | 100 100 . . Level 1 . | . . . . Level 2 . | . . . . Level 3 . | . . . . Level 4 . | . . . . Level 5 . | . . . . High Security . | . . . . Max Security . | . . . . Peak Influence 70 | . 70 . . Initial . | . . . . Average 13 | . 14 . . Influence Increases 229 | . 119 110 . Destroy 0b10 Robot/C 140 | . 60 80 . Destroy 0b10 Robot/NC 20 | . 20 . . Destroy Leader 16 | . 16 . . Successful Hack 7 | . 7 . . Disable Machine 9 | . 9 . . Destroy Structure 7 | . 7 . . Lose Combat Pursuer 30 | . . 30 . Influence Decreases 229 | . 119 80 30 Entered New Map 30 | . . . 30 Time Decay 189 | . 119 70 . Lost Part 10 | . . 10 . Squads Dispatched . | . . . . Investigation . | . . . . Extermination . | . . . . Reinforcement . | . . . . Assault . | . . . . Garrison . | . . . . Intercept . | . . . . Searches Triggered . | . . . . Construction Impeded . | . . . . Haulers Reinforced . | . . . . Active Scanning Responses . | . . . . Cargo Convoy Interrupts . | . . . . Stealth | -11 -10 -10 -9 --------- Run | Yrd Mat Sub Scr Distress Signals . | . . . . Communications Jammed . | . . . . Distress Signals . | . . . . Times Spotted 30 | . 5 8 17 Peak Tracking Total 5 | . 2 5 5 Tactical Retreats 2 | . . 1 1 Traps | -11 -10 -10 -9 ------- Run | Yrd Mat Sub Scr Traps Triggered 3 | . 1 2 . Indirectly . | . . . . Trap Hack Attempts . | . . . . Triggered . | . . . . Disarmed . | . . . . Reprogrammed . | . . . . Reused . | . . . . Traps Extracted . | . . . . Installed . | . . . . Triggered . | . . . . Machines | -11 -10 -10 -9 ---------- Run | Yrd Mat Sub Scr Machines Disabled 10 | . 1 2 7 Max in Single Turn 2 | . 1 2 1 Machines Repaired . | . . . . Machines Dismantled . | . . . . Machines Sabotaged . | . . . . Overloaded Fab Kills . | . . . . Hacking | -11 -10 -10 -9 --------- Run | Yrd Mat Sub Scr Machines Accessed 17 | . 5 . 12 Terminals 4 | . 4 . . Fabricators . | . . . . Repair Stations . | . . . . Recycling Units 1 | . 1 . . Scanalyzers . | . . . . Garrison Access . | . . . . Total Hacks 62 | . 14 . 48 Successful 54 | . 6 . 48 Failed 8 | . 8 . . Catastrophic . | . . . . Database Lockouts . | . . . . Manual 5 | . 5 . . Terminals 13 | . 13 . . Fabricators . | . . . . Repair Stations . | . . . . Recycling Units 1 | . 1 . . Scanalyzers . | . . . . Garrison Access . | . . . . Terminal Hacks 50 | . 2 . 48 Record 41 | . . . 41 Robot Analysis 6 | . . . 6 Locate Traps 1 | . 1 . . Maintenance Status 1 | . 1 . . Proto ID Catalog 1 | . . . 1 Fabricator Hacks . | . . . . Repair Station Hacks . | . . . . Recycling Unit Hacks 1 | . 1 . . Report Inventory 1 | . 1 . . Scanalyzer . | . . . . Garrison Access Hacks . | . . . . Unauthorized Hacks 3 | . 3 . . Terminals 3 | . 3 . . Botnet 3 | . 3 . . Fabricators . | . . . . Repair Stations . | . . . . Recycling Units . | . . . . Scanalyzers . | . . . . Garrison Access . | . . . . Data Cores Recovered . | . . . . Used . | . . . . Hacking Detections 3 | . 3 . . Full Trace Events 3 | . 3 . . Feedback Events . | . . . . Feedback Blocked . | . . . . Robot Schematics Acquired . | . . . . Robots Built . | . . . . Authchips . | . . . . Time . | . . . . Total Robot Build Rating . | . . . . Part Schematics Acquired . | . . . . Parts Built . | . . . . Authchips . | . . . . Time . | . . . . Total Part Build Rating . | . . . . Parts Repaired . | . . . . Time . | . . . . Parts Recycled . | . . . . Recycled Matter . | . . . . Retrieved Matter . | . . . . Retrieved Components . | . . . . Parts Scanalyzed . | . . . . Part Schematics Acquired . | . . . . Parts Damaged . | . . . . Bothacking | -11 -10 -10 -9 ------------ Run | Yrd Mat Sub Scr Used RIF Installer . | . . . . Robots Hacked . | . . . . Non-combat . | . . . . Combat . | . . . . Robot Hacks Applied . | . . . . Relay Couplers Released . | . . . . Fabnet Peak Effective % . | . . . . Robots Rewired . | . . . . Allies Hacked . | . . . . Hacks Repelled . | . . . . Allies | -11 -10 -10 -9 -------- Run | Yrd Mat Sub Scr Total Allies . | . . . . Largest Group . | . . . . Highest-Rated Group . | . . . . Highest-Rated Ally . | . . . . Total Orders . | . . . . Ally Attacks . | . . . . Total Damage . | . . . . Kills . | . . . . Allies Corrupted . | . . . . Allies Melted 3 | . . . 3 Intel | -11 -10 -10 -9 ------- Run | Yrd Mat Sub Scr Active Infowar (turns) . | . . . . Robot Analysis Total 6 | . . . 6 Derelict Logs Recovered 1 | . . 1 . Drone Launches . | . . . . Drone Recoveries . | . . . . Exploration | -11 -10 -10 -9 ------------- Run | Yrd Mat Sub Scr Turns Passed 3787 | 43 418 527 2799 Spaces Moved 2724 | 32 296 328 2068 Core 13 | 13 . . . Treads . | . . . . Legs 2277 | 19 296 328 1634 Wheels 434 | . . . 434 Hover . | . . . . Flight . | . . . . Fastest Speed 50 | 50 120 120 95 Average Speed 127 | 93 120 124 130 Slowest Speed 190 | 190 120 190 190 Overloaded Moves . | . . . . Propulsion Burnouts . | . . . . Robots Hopped . | . . . . Potential Cave-ins . | . . . . Cave-ins Triggered . | . . . . Exploration Rate (%) 42 | 3 46 27 92 Regions Visited 3 Branch Regions 2 Pre-discovered Areas . | . . . . Known Exits Taken 2 | . 1 1 . Unknown Exits Taken 1 | 1 . . . Scrap Searched 4 | . . . 4 Spaces Dug 55 | . . 30 25 Terrain Destroyed 139 | . 6 81 52 Melee . | . . . . Projectile . | . . . . AOE 139 | . 6 81 52 Terrain Rammed . | . . . . Walls Destroyed . | . . . . Machines Disabled . | . . . . Actions | -11 -10 -10 -9 --------- Run | Yrd Mat Sub Scr Total 2899 | 45 323 398 2133 Wait 36 | 2 . 33 1 Move 2721 | 31 295 327 2068 Hop . | . . . . Pick Up 19 | 6 4 2 7 Fast Attach 2 | . . . 2 Attach 12 | 6 2 1 3 Detach . | . . . . Swap 12 | . 2 3 7 Drop 8 | . . . 8 Fire 89 | . 20 32 37 Melee . | . . . . Ram . | . . . . Kick . | . . . . Crush . | . . . . Escape Stasis . | . . . . Rewire . | . . . . Trap . | . . . . Miscellaneous . | . . . . Route ------- -11/Scrapyard -10/Materials (discovered 2 exits: *Mat / *Sub) -10/Subcaves (discovered 2 exits: *Rec / *Scr) -9/Scraptown (discovered 2 exits: *Fac x2) History --------- Turn | Location | Event 10 | -11/Scrapyard | Discovered new exit (range 16) 44 | -11/Scrapyard | Entered Materials 310 | -10/Materials | Build established: Mutant 368 | -10/Materials | Discovered new exit (range 16) 381 | -10/Materials | Discovered new exit (range 8) 384 | -10/Materials | Identified exit to Materials 394 | -10/Materials | Identified exit to Subcaves 462 | -10/Materials | Entered Subcaves 463 | -10/Subcaves | Approached by a straggling Scientist 761 | -10/Subcaves | Shifting Twisted Machinery released Sub. Power Source 762 | -10/Subcaves | Shifting Twisted Machinery released Sub. Machine Gun 864 | -10/Subcaves | Discovered new exit (range 15) 875 | -10/Subcaves | Core integrity fell below 50% 890 | -10/Subcaves | Scientist uncovered a shortcut to Scraptown 897 | -10/Subcaves | Identified exit to Recycling 987 | -10/Subcaves | Identified exit to Scraptown 989 | -10/Subcaves | Entered Scraptown 1191 | -9/Scraptown | Discovered new exit (range 11) 1212 | -9/Scraptown | Identified exit to Factory 1305 | -9/Scraptown | Visited Comm Corps 1377 | -9/Scraptown | Visited Fellowship of the Rings 1412 | -9/Scraptown | Visited UFD Registry 1412 | -9/Scraptown | Registered with UFD as "Technocycle" 1472 | -9/Scraptown | Visited Curators Association 1546 | -9/Scraptown | Visited Scrap Suit Storage 1627 | -9/Scraptown | Visited Analyses Database 1945 | -9/Scraptown | Visited Science Guys 2011 | -9/Scraptown | Visited DA-N13 Charitable Foundation 2036 | -9/Scraptown | Found DCF Scrap (30 items) 2080 | -9/Scraptown | Visited A0-MCA Data Center 2091 | -9/Scraptown | Given a B- rating by A0-MCA 2097 | -9/Scraptown | Found A0-MCA's Component Scanner 2162 | -9/Scraptown | Visited Scrapoid Research Area 2195 | -9/Scraptown | Visited Abandonware Association 2204 | -9/Scraptown | Learned abandonware demo "OVRCLOCK.EXE" 2212 | -9/Scraptown | Learned abandonware demo "POISON.EXE" 2255 | -9/Scraptown | Visited Modified Component R&D 2456 | -9/Scraptown | Discovered exit to Factory (range 5) 2945 | -9/Scraptown | Visited Spacefarers 2984 | -9/Scraptown | Visited SPCMW 3050 | -9/Scraptown | Visited Cyclists 3069 | -9/Scraptown | Entered Cyclist Reading Room 3106 | -9/Scraptown | Visited Science Testing Area 3202 | -9/Scraptown | Visited Awakened 3430 | -9/Scraptown | Met Optimus 3430 | -9/Scraptown | Accepted into 0bPrime 3471 | -9/Scraptown | Received an X-ray algorithm 3530 | -9/Scraptown | Civil war broke out across Scraptown 3622 | -9/Scraptown | Core integrity fell below 20% 3639 | -9/Scraptown | Lost 10 allies 3668 | -9/Scraptown | Found Scrap Suit 3682 | -9/Scraptown | Lost 3 allies 3788 | -9/Scraptown | Destroyed by 7U-8TX(j) with Overtuned Pulse Rifle Last Messages --------------- 03681_ WS-PFO(j) destroyed. 03681_ Supplies damaged. 03683_ The unstable cave ceiling collapses. 03702_ Acquired 70 matter. 03704_ The unstable cave ceiling collapses. 03722_ Dropped Ovr. Barrage Gun. 03723_ Acquired Ovr. Barrage Gun. 03725_ Ovr. Titanium Leg recovered from malfunction. 03725_ Ovr. Titanium Leg suddenly begins malfunctioning. 03734_ Grenade Launcher destroyed. 03742_ Ovr. Titanium Leg recovered from malfunction. 03765_ Acquired 70 matter. 03767_ The unstable cave ceiling collapses. 03780_ Lgt. Deuterium Engine melted. 03780_ Mak. Salvage Targeting Computer melted. 03780_ HS-KLY(j) destroyed. 03787_ Acquired Ovr. Pulse Rifle. Map ----- +----------------------------------------------------+ | ""###### ################""%*= "####### | | """"""""""""""""""""""""""" [%= "##" """ | | """"""""""""""""" "" " """" [= """ | | =! "## | | %[ ! %* ## | | ! % !*! ! = [ ! * ## | | ""#" [% =[%! % ===% [!## "" | | ??#" =%! %! !% !=[%# "" | | ??#"""""" """"""""""" """ """"""" """" =!!"# | | ??####### ########### ###### # ######%*=## | | ???#" "#?# #?#[%!## "" | | ???##"" ""##?## #?#!= ## "& | | ????#=" "!#??#"! ! # ""#?#!%!####### | | ???##"" ""##?#"! ! "#?# [ #?????? | | ???#" "#?#"! ! " " X "#?# ##????? | | ???##"" ""##?#"! ! """"""""#?# "###### | | ????#]" "!#??#" ! ############?# | | ????#"" ""#??## X ###????????????# | | ???#" """ "#?#"! #????????????#[ | | ???#### "*" ####?# [ " #????????????#%! | | ??????#"###"#????# # #????????????#= | | ??????###?###????## # ##????????????#!! ""##### | | ################### ###################%= #####?? | | ##"""##"""# """##"""##"|"#=! """"#?? | | """"""" ## ""## ""# # ##""|##" #%! "" "#?? | | """"""" !! ! @ = ! j != "#?? | | """"""" [%= * ! " "#?? | | """"""" =%! %= / """"#?? | | """"""" ##"""##"""## |## "##!! ##"" ## ######?? | | ##"""##"""##"""##"""##" "##"""##"#??????? | | ########################################?##??????? | | ?????????????????????????????????????????????????? | | ?????????????????????????????????????????????????? | | ?????????????????????????????????????????????????? | | ?????????????????????????????????????????????????? | | ?????????????????????????????????????????????????? | | ?????????????????????????????????????????????????? | | ?????????????????????????????????????????????????? | | ?????????????????????????????????????????????????? | | ?????????????????????????????????????????????????? | | ?????????????????????????????????????????????????? | | ?????????????????????????????????????????????????? | | ?????????????????????????????????????????????????? | | ?????????????????????????????????????????????????? | | ?????????????????????????????????????????????????? | | | | | | | | | | | +----------------------------------------------------+ Best States ------------- Heat Dissipation 25 Energy Generation 16 Energy Capacity 290 Matter Stores 300 Matter Capacity 300 Sight Range 16 Terrain Scan Density 10 Resistance: KI 20 Resistance: TH 20 Resistance: EX 20 Resistance: EM 20 Resistance: I 20 Resistance: S 20 Resistance: P 20 Evasion (%) 55 Offensive Hacking 10 Item Schematics ----------------- None Robot Schematics ------------------ None Fabricated ------------ Nothing Repaired ---------- Nothing Alien Tech Used ----------------- None Achievements -------------- Quantum Hacking Challenges ------------ None Game ------ Seed DispersionDataProjector Manual? 0 Play Time 00:44:15 Cumulative 80.1 hours Start 2025.05.29 @ 16:33:18 End 2025.05.29 @ 17:20:22 Sessions 1 Manual Loads 0 Difficulty Adventurer Special Mode None Game No. 56 Rogue 17 Adventurer 39 Explorer 0 Win Type - Total 1 Types 1/0/0/0/0/0/0/0/0/0 Lore% 40 Gallery% 44 Achievement% 46 Wizard Run 0 Options --------- Layout 1 ASCII 0 Keyboard 0 Movement Mouse Keybinds 0 Fullscreen 2 Font 24/Smallcaps Map View 50x35 Zoom Use 0% Tactical HUD 1 Map Filters NONE Filters NONE Steam 1 RUN: b1cc3ee4-7b76-4057-a283-cc5088af6f9f